fUST/lending_fUST_20250716
["ID","MTS","AMOUNT","RATE_DAILY","PERIOD"]
[372489169,1752661858394,-460.0,0.00021095,2]
[372489170,1752661858404,-1678.67,0.00021095,2]
[372489171,1752661858414,-460.0,0.00021095,2]
[372489172,1752661858423,-2804.76,0.00021095,2]
[372489173,1752661858433,-460.0,0.00021095,2]
[372489174,1752661858443,-880.95,0.00021095,2]
[372489175,1752661858452,-460.0,0.00021095,2]
[372489176,1752661858461,-460.0,0.00021095,2]
[372489177,1752661858471,-460.0,0.00021095,2]
[372489178,1752661858481,-460.0,0.00021095,2]
[372489179,1752661858491,-547.27,0.00021095,2]
[372489180,1752661858500,-460.0,0.00021095,2]
[372489181,1752661858509,-460.0,0.00021095,2]
[372489182,1752661858519,-460.0,0.00021095,2]
[372489183,1752661858529,-460.0,0.00021095,2]
[372489184,1752661858539,-1611.13,0.00021095,2]
[372489185,1752661858549,-460.0,0.00021095,2]
[372489186,1752661858559,-538.41,0.00021095,2]
[372489187,1752661858569,-3033.39,0.00021095,2]
[372489188,1752661858578,-1379.03,0.00021095,2]
[372489189,1752661858588,-531.64,0.00021095,2]
[372489190,1752661858598,-2255.61,0.00021095,2]
[372489191,1752661858607,-460.0,0.00021095,2]
[372489192,1752661858617,-460.0,0.00021095,2]
[372489193,1752661858627,-488.85530681,0.00021095,2]
[372489194,1752661858637,-669.07,0.00021095,2]
[372489195,1752661858649,-460.0,0.00021095,2]
[372489196,1752661858659,-654.85,0.00021095,2]
[372489197,1752661858669,-460.0,0.00021095,2]
[372489198,1752661858679,-460.0,0.00021095,2]
[372489199,1752661858689,-203.55635699,0.00021116,2]
[372489200,1752661858700,-1037.66765001,0.00021141,4]
[372489201,1752661858709,-500.0,0.00021164,2]
[372489202,1752661858719,-151.0,0.000212,4]
[372489203,1752661858729,-360.0,0.00021234,2]
[372489204,1752661858738,-501.58314376,0.00021309,2]
[372489205,1752661858748,-500.85482562,0.00021329,2]
[372489206,1752661858758,-1037.66765001,0.00021348,5]
[372489207,1752661858767,-1000.0,0.00021364,2]
[372489208,1752661858777,-460.0,0.00021369,2]
[372489209,1752661858788,-460.0,0.00021369,2]
[372489210,1752661858798,-460.0,0.00021369,2]
[372489211,1752661858808,-460.0,0.00021369,2]
[372489212,1752661858818,-460.0,0.00021369,2]
[372489213,1752661858827,-460.0,0.00021369,2]
[372489214,1752661858837,-440.76451204,0.00021369,2]
[372489215,1752661858847,-460.0,0.00021369,2]
[372489216,1752661858858,-460.0,0.00021369,2]
[372489217,1752661858868,-274.36,0.00021369,2]
[372489218,1752661858878,-460.0,0.00021369,2]
[372489219,1752661858888,-460.0,0.00021369,2]
[372489220,1752661858898,-460.0,0.00021369,2]
[372489221,1752661858908,-460.0,0.00021369,2]
[372489222,1752661858917,-460.0,0.00021369,2]
[372489223,1752661858927,-460.0,0.00021369,2]
[372489224,1752661858937,-460.0,0.00021369,2]
[372489225,1752661858946,-468.7,0.00021369,2]
[372489226,1752661858955,-362.09439152,0.00021369,2]
[372489227,1752661858965,-460.0,0.00021369,2]
[372489228,1752661858975,-577.88,0.00021369,2]
[372489229,1752661858985,-460.0,0.00021369,2]
[372489230,1752661858994,-321.17997114,0.00021369,2]
[372489231,1752661859005,-256.35568795,0.00021369,2]
[372489232,1752661859015,-460.0,0.00021369,2]
[372489233,1752661859025,-460.0,0.00021369,2]
[372489234,1752661859035,-886.16,0.00021369,2]
[372489235,1752661859044,-460.0,0.00021369,2]
[372489236,1752661859054,-460.0,0.00021369,2]
[372489237,1752661859064,-566.1,0.00021369,2]
[372489238,1752661859074,-277.47721017,0.00021369,2]
[372489239,1752661859084,-460.0,0.00021369,2]
[372489240,1752661859093,-460.0,0.00021369,2]
[372489241,1752661859102,-460.0,0.00021369,2]
[372489242,1752661859112,-592.47141717,0.00021369,2]
[372489243,1752661859122,-460.0,0.00021369,2]
[372489244,1752661859131,-460.0,0.00021369,2]
[372489245,1752661859141,-460.0,0.00021369,2]
[372489246,1752661859150,-460.0,0.00021369,2]
[372489247,1752661859160,-460.0,0.00021369,2]
[372489248,1752661859169,-460.0,0.00021369,2]
[372489249,1752661859179,-460.0,0.00021369,2]
[372489250,1752661859189,-522.42211672,0.00021369,2]
[372489251,1752661859199,-876.74,0.00021369,2]
[372489252,1752661859208,-460.0,0.00021369,2]
[372489253,1752661859218,-704.09,0.00021369,2]
[372489254,1752661859227,-460.0,0.00021369,2]
[372489255,1752661859236,-252.58624818,0.00021369,2]
[372489256,1752661859246,-460.0,0.00021369,2]
[372489257,1752661859255,-460.0,0.00021369,2]
[372489258,1752661859265,-460.0,0.00021369,2]
[372489259,1752661859275,-460.0,0.00021369,2]
[372489260,1752661859284,-460.0,0.00021369,2]
[372489261,1752661859294,-460.0,0.00021369,2]
[372489262,1752661859303,-953.48,0.00021369,2]
[372489263,1752661859313,-460.0,0.00021369,2]
[372489264,1752661859323,-1046.68,0.00021369,2]
[372489265,1752661859332,-510.05651254,0.00021369,2]
[372489266,1752661859341,-460.0,0.00021369,2]
[372489267,1752661859351,-2218.72,0.00021369,2]
[372489268,1752661859360,-460.0,0.00021369,2]
[372489269,1752661859370,-460.0,0.00021369,2]
[372489270,1752661859379,-460.0,0.00021369,2]
[372489271,1752661859389,-460.0,0.00021369,2]
[372489272,1752661859398,-636.45,0.00021369,2]
[372489273,1752661859407,-4842.09,0.00021369,2]
[372489274,1752661859418,-460.0,0.00021369,2]
[372489275,1752661859427,-460.0,0.00021369,2]
[372489276,1752661859437,-460.0,0.00021369,2]
[372489277,1752661859446,-460.0,0.00021369,2]
[372489278,1752661859456,-467.04,0.00021369,2]
[372489279,1752661859465,-548.86,0.00021369,2]
[372489280,1752661859475,-460.0,0.00021369,2]
[372489281,1752661859484,-1506.49,0.00021369,2]
[372489282,1752661859494,-1707.39,0.00021369,2]
[372489283,1752661859503,-460.0,0.00021369,2]
[372489284,1752661859514,-460.0,0.00021369,2]
[372489285,1752661859523,-460.0,0.00021369,2]
[372489286,1752661859533,-656.21,0.00021369,2]
[372489287,1752661859542,-460.0,0.00021369,2]
[372489288,1752661859552,-460.0,0.00021369,2]
[372489289,1752661859562,-460.0,0.00021369,2]
[372489290,1752661859571,-460.0,0.00021369,2]
[372489291,1752661859581,-460.0,0.00021369,2]
[372489292,1752661859590,-460.0,0.00021369,2]
[372489293,1752661859600,-460.0,0.00021369,2]
[372489294,1752661859610,-460.0,0.00021369,2]
[372489295,1752661859619,-460.0,0.00021369,2]
[372489296,1752661859629,-1678.67,0.00021369,2]
[372489297,1752661859638,-460.0,0.00021369,2]
[372489298,1752661859647,-2804.76,0.00021369,2]
[372489299,1752661859657,-460.0,0.00021369,2]
[372489300,1752661859667,-880.95,0.00021369,2]
[372489301,1752661859677,-460.0,0.00021369,2]
[372489302,1752661859687,-460.0,0.00021369,2]
[372489303,1752661859697,-460.0,0.00021369,2]
[372489304,1752661859707,-460.0,0.00021369,2]
[372489305,1752661859716,-547.27,0.00021369,2]
[372489306,1752661859726,-460.0,0.00021369,2]
[372489307,1752661859735,-460.0,0.00021369,2]
[372489308,1752661859745,-460.0,0.00021369,2]
[372489309,1752661859754,-460.0,0.00021369,2]
[372489310,1752661859764,-1611.13,0.00021369,2]
[372489311,1752661859773,-460.0,0.00021369,2]
[372489312,1752661859783,-538.41,0.00021369,2]
[372489313,1752661859796,-3033.39,0.00021369,2]
[372489314,1752661859806,-1379.03,0.00021369,2]
[372489315,1752661859815,-531.64,0.00021369,2]
[372489316,1752661859824,-2255.61,0.00021369,2]
[372489317,1752661859834,-460.0,0.00021369,2]
[372489318,1752661859844,-460.0,0.00021369,2]
[372489319,1752661859853,-669.07,0.00021369,2]
[372489320,1752661859865,-460.0,0.00021369,2]
[372489321,1752661859875,-654.85,0.00021369,2]
[372489322,1752661859884,-460.0,0.00021369,2]
[372489323,1752661859894,-460.0,0.00021369,2]
[372489324,1752661859903,-501.90551534,0.00021478,2]
[372489325,1752661859913,-503.86476806,0.00021478,2]
[372489326,1752661859923,-500.0,0.00021502,2]
[372489327,1752661859932,-1000.0,0.00021521,2]
[372489328,1752661859941,-3252.66868497,0.00021531,2]
[372489329,1752661859950,-1037.66765001,0.00021555,5]
[372489330,1752661859960,-151.0,0.000216,3]
[372489331,1752661859969,-460.0,0.00021643,2]
[372489332,1752661859979,-460.0,0.00021643,2]
[372489333,1752661859988,-460.0,0.00021643,2]
[372489334,1752661859998,-460.0,0.00021643,2]
[372489335,1752661860008,-446.53519211,0.00021643,2]
[372489336,1752661860018,-460.0,0.00021643,2]
[372489337,1752661860029,-609.66,0.00021643,2]
[372489338,1752661860038,-460.0,0.00021643,2]
[372489339,1752661860047,-460.0,0.00021643,2]
[372489340,1752661860057,-460.0,0.00021643,2]
[372489341,1752661860068,-460.0,0.00021643,2]
[372489342,1752661860078,-460.0,0.00021643,2]
[372489343,1752661860088,-460.0,0.00021643,2]
[372489344,1752661860098,-460.0,0.00021643,2]
[372489345,1752661860108,-460.0,0.00021643,2]
[372489346,1752661860118,-468.7,0.00021643,2]
[372489347,1752661860127,-460.0,0.00021643,2]
[372489348,1752661860137,-577.88,0.00021643,2]
[372489349,1752661860146,-460.0,0.00021643,2]
[372489350,1752661860158,-477.85975734,0.00021643,2]
[372489351,1752661860168,-460.0,0.00021643,2]
[372489352,1752661860178,-886.16,0.00021643,2]
[372489353,1752661860187,-460.0,0.00021643,2]
[372489354,1752661860197,-460.0,0.00021643,2]
[372489355,1752661860206,-566.1,0.00021643,2]
[372489356,1752661860215,-460.0,0.00021643,2]
[372489357,1752661860225,-460.0,0.00021643,2]
[372489358,1752661860235,-460.0,0.00021643,2]
[372489359,1752661860244,-460.0,0.00021643,2]
[372489360,1752661860342,-460.0,0.00021643,2]
[372489361,1752661860352,-460.0,0.00021643,2]
[372489362,1752661860362,-460.0,0.00021643,2]
[372489363,1752661860372,-460.0,0.00021643,2]
[372489364,1752661860383,-460.0,0.00021643,2]
[372489365,1752661860393,-876.74,0.00021643,2]
[372489366,1752661860402,-460.0,0.00021643,2]
[372489367,1752661860413,-704.09,0.00021643,2]
[372489368,1752661860423,-460.0,0.00021643,2]
[372489369,1752661860432,-460.0,0.00021643,2]
[372489370,1752661860442,-460.0,0.00021643,2]
[372489371,1752661860451,-460.0,0.00021643,2]
[372489372,1752661860461,-460.0,0.00021643,2]
[372489373,1752661860472,-460.0,0.00021643,2]
[372489374,1752661860482,-460.0,0.00021643,2]
[372489375,1752661860491,-953.48,0.00021643,2]
[372489376,1752661860501,-460.0,0.00021643,2]
[372489377,1752661860511,-1046.68,0.00021643,2]
[372489378,1752661860521,-460.0,0.00021643,2]
[372489379,1752661860533,-2218.72,0.00021643,2]
[372489380,1752661860543,-460.0,0.00021643,2]
[372489381,1752661860556,-460.0,0.00021643,2]
[372489382,1752661860566,-173.17936589,0.00021643,2]
[372489383,1752661860576,-636.45,0.00021643,2]
[372489384,1752661860586,-4842.09,0.00021643,2]
[372489385,1752661860597,-539.66045575,0.00021643,2]
[372489386,1752661860607,-460.0,0.00021643,2]
[372489387,1752661860617,-460.0,0.00021643,2]
[372489388,1752661860627,-460.0,0.00021643,2]
[372489389,1752661860638,-467.04,0.00021643,2]
[372489390,1752661860648,-548.86,0.00021643,2]
[372489391,1752661860658,-193.35981206,0.00021643,2]
[372489392,1752661860668,-1506.49,0.00021643,2]
[372489393,1752661860678,-1707.39,0.00021643,2]
[372489394,1752661860688,-460.0,0.00021643,2]
[372489395,1752661860698,-460.0,0.00021643,2]
[372489396,1752661860708,-460.0,0.00021643,2]
[372489397,1752661860718,-656.21,0.00021643,2]
[372489398,1752661860728,-460.0,0.00021643,2]
[372489399,1752661860738,-460.0,0.00021643,2]
[372489400,1752661860748,-460.0,0.00021643,2]
[372489401,1752661860757,-460.0,0.00021643,2]
[372489402,1752661860766,-601.76031898,0.00021643,2]
[372489403,1752661860776,-460.0,0.00021643,2]
[372489404,1752661860788,-460.0,0.00021643,2]
[372489405,1752661860802,-460.0,0.00021643,2]
[372489406,1752661860812,-460.0,0.00021643,2]
[372489407,1752661860822,-1678.67,0.00021643,2]
[372489408,1752661860832,-460.0,0.00021643,2]
[372489409,1752661860843,-2804.76,0.00021643,2]
[372489410,1752661860852,-460.0,0.00021643,2]
[372489411,1752661860862,-880.95,0.00021643,2]
[372489412,1752661860872,-460.0,0.00021643,2]
[372489413,1752661860882,-460.0,0.00021643,2]
[372489414,1752661860891,-460.0,0.00021643,2]
[372489415,1752661860901,-460.0,0.00021643,2]
[372489416,1752661860911,-547.27,0.00021643,2]
[372489417,1752661860921,-460.0,0.00021643,2]
[372489418,1752661860931,-460.0,0.00021643,2]
[372489419,1752661860941,-460.0,0.00021643,2]
[372489420,1752661860950,-1611.13,0.00021643,2]
[372489421,1752661860960,-460.0,0.00021643,2]
[372489422,1752661860970,-538.41,0.00021643,2]
[372489423,1752661860979,-3033.39,0.00021643,2]
[372489424,1752661860989,-1379.03,0.00021643,2]
[372489425,1752661860998,-531.64,0.00021643,2]
[372489426,1752661861008,-2255.61,0.00021643,2]
[372489427,1752661861018,-460.0,0.00021643,2]
[372489428,1752661861027,-368.12,0.00021643,2]
[372489429,1752661861037,-669.07,0.00021643,2]
[372489430,1752661861047,-460.0,0.00021643,2]
[372489431,1752661861056,-654.85,0.00021643,2]
[372489432,1752661861066,-460.0,0.00021643,2]
[372489433,1752661861075,-460.0,0.00021643,2]
[372489434,1752661861085,-595.6464597,0.00021726,2]
[372489435,1752661861095,-1037.66765001,0.00021762,5]
[372489436,1752661861104,-400.0,0.00021782,2]
[372489437,1752661861114,-343.96916893,0.00021817,2]
[372489438,1752661861123,-3252.66868497,0.00021889,2]
[372489439,1752661861133,-398.02468223,0.00021917,2]
[372489440,1752661861143,-460.0,0.00021917,2]
[372489441,1752661861153,-460.0,0.00021917,2]
[372489442,1752661861163,-469.14789755,0.00021917,2]
[372489443,1752661861172,-460.0,0.00021917,2]
[372489444,1752661861181,-460.0,0.00021917,2]
[372489445,1752661861191,-460.0,0.00021917,2]
[372489446,1752661861200,-460.0,0.00021917,2]
[372489447,1752661861211,-460.0,0.00021917,2]
[372489448,1752661861221,-460.0,0.00021917,2]
[372489449,1752661861231,-460.0,0.00021917,2]
[372489450,1752661861241,-460.0,0.00021917,2]
[372489451,1752661861250,-460.0,0.00021917,2]
[372489452,1752661861260,-468.7,0.00021917,2]
[372489453,1752661861269,-460.0,0.00021917,2]
[372489454,1752661861280,-577.88,0.00021917,2]
[372489455,1752661861290,-460.0,0.00021917,2]
[372489456,1752661861300,-460.0,0.00021917,2]
[372489457,1752661861310,-886.16,0.00021917,2]
[372489458,1752661861320,-196.74394203,0.00021917,2]
[372489459,1752661861330,-460.0,0.00021917,2]
[372489460,1752661861340,-566.1,0.00021917,2]
[372489461,1752661861350,-460.0,0.00021917,2]
[372489462,1752661861360,-473.94804439,0.00021917,2]
[372489463,1752661861369,-543.39590179,0.00021917,2]
[372489464,1752661861379,-460.0,0.00021917,2]
[372489465,1752661861389,-513.65960544,0.00021917,2]
[372489466,1752661861398,-460.0,0.00021917,2]
[372489467,1752661861408,-460.0,0.00021917,2]
[372489468,1752661861418,-460.0,0.00021917,2]
[372489469,1752661861428,-460.0,0.00021917,2]
[372489470,1752661861438,-876.74,0.00021917,2]
[372489471,1752661861448,-460.0,0.00021917,2]
[372489472,1752661861457,-704.09,0.00021917,2]
[372489473,1752661861467,-460.0,0.00021917,2]
[372489474,1752661861476,-460.0,0.00021917,2]
[372489475,1752661861487,-460.0,0.00021917,2]
[372489476,1752661861497,-306.01905259,0.00021917,2]
[372489477,1752661861507,-460.0,0.00021917,2]
[372489478,1752661861517,-460.0,0.00021917,2]
[372489479,1752661861527,-460.0,0.00021917,2]
[372489480,1752661861538,-953.48,0.00021917,2]
[372489481,1752661861547,-460.0,0.00021917,2]
[372489482,1752661861557,-1046.68,0.00021917,2]
[372489483,1752661861566,-460.0,0.00021917,2]
[372489484,1752661861575,-2218.72,0.00021917,2]
[372489485,1752661861584,-460.0,0.00021917,2]
[372489486,1752661861594,-460.0,0.00021917,2]
[372489487,1752661861604,-636.45,0.00021917,2]
[372489488,1752661861614,-4842.09,0.00021917,2]
[372489489,1752661861624,-460.0,0.00021917,2]
[372489490,1752661861634,-460.0,0.00021917,2]
[372489491,1752661861643,-460.0,0.00021917,2]
[372489492,1752661861653,-467.04,0.00021917,2]
[372489493,1752661861663,-548.86,0.00021917,2]
[372489494,1752661861672,-1506.49,0.00021917,2]
[372489495,1752661861682,-1707.39,0.00021917,2]
[372489496,1752661861691,-153.40435485,0.00021917,2]
[372489497,1752661861701,-460.0,0.00021917,2]
[372489498,1752661861711,-460.0,0.00021917,2]
[372489499,1752661861721,-656.21,0.00021917,2]
[372489500,1752661861732,-460.0,0.00021917,2]
[372489501,1752661861742,-460.0,0.00021917,2]
[372489502,1752661861752,-460.0,0.00021917,2]
[372489503,1752661861762,-460.0,0.00021917,2]
[372489504,1752661861772,-460.0,0.00021917,2]
[372489505,1752661861782,-460.0,0.00021917,2]
[372489506,1752661861796,-460.0,0.00021917,2]
[372489507,1752661861806,-460.0,0.00021917,2]
[372489508,1752661861815,-1678.67,0.00021917,2]
[372489509,1752661861825,-409.11302142,0.00021917,2]
[372489510,1752661861835,-2804.76,0.00021917,2]
[372489511,1752661861844,-344.96725517,0.00021917,2]
[372489512,1752661861853,-880.95,0.00021917,2]
[372489513,1752661861863,-460.0,0.00021917,2]
[372489514,1752661861873,-460.0,0.00021917,2]
[372489515,1752661861882,-460.0,0.00021917,2]
[372489516,1752661861892,-460.0,0.00021917,2]
[372489517,1752661861901,-547.27,0.00021917,2]
[372489518,1752661861911,-460.0,0.00021917,2]
[372489519,1752661861920,-460.0,0.00021917,2]
[372489520,1752661861930,-460.0,0.00021917,2]
[372489521,1752661861939,-1611.13,0.00021917,2]
[372489522,1752661861949,-460.0,0.00021917,2]
[372489523,1752661861959,-538.41,0.00021917,2]
[372489524,1752661861969,-3033.39,0.00021917,2]
[372489525,1752661861979,-1379.03,0.00021917,2]
[372489526,1752661861988,-531.64,0.00021917,2]
[372489527,1752661861999,-2255.61,0.00021917,2]
[372489528,1752661862008,-460.0,0.00021917,2]
[372489529,1752661862018,-404.30530871,0.00021917,2]
[372489530,1752661862028,-460.0,0.00021917,2]
[372489531,1752661862039,-1617.22123483,0.00021917,2]
[372489532,1752661862048,-3638.74777837,0.00021917,2]
[372489533,1752661862058,-669.07,0.00021917,2]
[372489534,1752661862068,-6468.88493932,0.00021917,2]
[372489535,1752661862078,-460.0,0.00021917,2]
[372489536,1752661862088,-10097.52508497,0.00021917,2]
[372489537,1752661862098,-654.85,0.00021917,2]
[372489538,1752661862108,-460.0,0.00021917,2]
[372489539,1752661862117,-460.0,0.00021917,2]
[372489540,1752661862127,-4013.89011524,0.00021939,2]
[372489541,1752661862136,-1037.66765001,0.00021969,6]
[372489542,1752661862146,-948.62,0.00022,7]
[372489543,1752661862156,-21119.35,0.00022,7]
[372489544,1752661862165,-790.85,0.00022,7]
[372489545,1752661862175,-15736.32,0.00022,2]
[372489546,1752661862184,-151.0,0.00022,5]
[372489547,1752661862270,-476.07036022,0.00022,7]
[372489548,1752661862282,-12605.49131908,0.00022,7]
[372489549,1752661862291,-160.0,0.00022,7]
[372489550,1752661862301,-214.40824756,0.00022,7]
[372489551,1752661862310,-161.0,0.00022,2]
[372489552,1752661862319,-1500.0,0.00022068,2]
[372489553,1752661862328,-1037.66765001,0.00022176,6]
[372489554,1752661862338,-228.90264443,0.00022191,2]
[372489555,1752661862348,-460.0,0.00022191,2]
[372489556,1752661862358,-460.0,0.00022191,2]
[372489557,1752661862368,-460.0,0.00022191,2]
[372489558,1752661862378,-460.0,0.00022191,2]
[372489559,1752661862389,-460.0,0.00022191,2]
[372489560,1752661862399,-460.0,0.00022191,2]
[372489561,1752661862409,-460.0,0.00022191,2]
[372489562,1752661862418,-460.0,0.00022191,2]
[372489563,1752661862427,-532.71651424,0.00022191,2]
[372489564,1752661862436,-468.7,0.00022191,2]
[372489565,1752661862446,-460.0,0.00022191,2]
[372489566,1752661862455,-577.88,0.00022191,2]
[372489567,1752661862465,-460.0,0.00022191,2]
[372489568,1752661862475,-460.0,0.00022191,2]
[372489569,1752661862485,-886.16,0.00022191,2]
[372489570,1752661862495,-460.0,0.00022191,2]
[372489571,1752661862505,-566.1,0.00022191,2]
[372489572,1752661862515,-460.0,0.00022191,2]
[372489573,1752661862524,-460.0,0.00022191,2]
[372489574,1752661862534,-460.0,0.00022191,2]
[372489575,1752661862546,-460.0,0.00022191,2]
[372489576,1752661862555,-460.0,0.00022191,2]
[372489577,1752661862567,-460.0,0.00022191,2]
[372489578,1752661862579,-876.74,0.00022191,2]
[372489579,1752661862591,-460.0,0.00022191,2]
[372489580,1752661862600,-704.09,0.00022191,2]
[372489581,1752661862614,-460.0,0.00022191,2]
[372489582,1752661862623,-460.0,0.00022191,2]
[372489583,1752661862632,-460.0,0.00022191,2]
[372489584,1752661862642,-460.0,0.00022191,2]
[372489585,1752661862652,-460.0,0.00022191,2]
[372489586,1752661862661,-460.0,0.00022191,2]
[372489587,1752661862670,-953.48,0.00022191,2]
[372489588,1752661862680,-460.0,0.00022191,2]
[372489589,1752661862690,-1046.68,0.00022191,2]
[372489590,1752661862701,-460.0,0.00022191,2]
[372489591,1752661862710,-2218.72,0.00022191,2]
[372489592,1752661862720,-460.0,0.00022191,2]
[372489593,1752661862730,-460.0,0.00022191,2]
[372489594,1752661862740,-636.45,0.00022191,2]
[372489595,1752661862751,-4842.09,0.00022191,2]
[372489596,1752661862762,-151.0,0.00022191,7]
[372489597,1752661862772,-460.0,0.00022191,2]
[372489598,1752661862784,-460.0,0.00022191,2]
[372489599,1752661862799,-460.0,0.00022191,2]
[372489600,1752661862809,-467.04,0.00022191,2]
[372489601,1752661862818,-151.0,0.00022191,7]
[372489602,1752661862828,-548.86,0.00022191,2]
[372489603,1752661862838,-1506.49,0.00022191,2]
[372489604,1752661862848,-1707.39,0.00022191,2]
[372489605,1752661862857,-460.0,0.00022191,2]
[372489606,1752661862869,-460.0,0.00022191,2]
[372489607,1752661862879,-656.21,0.00022191,2]
[372489608,1752661862888,-460.0,0.00022191,2]
[372489609,1752661862899,-460.0,0.00022191,2]
[372489610,1752661862909,-460.0,0.00022191,2]
[372489611,1752661862918,-460.0,0.00022191,2]
[372489612,1752661862928,-460.0,0.00022191,2]
[372489613,1752661862938,-460.0,0.00022191,2]
[372489614,1752661862947,-460.0,0.00022191,2]
[372489615,1752661862957,-460.0,0.00022191,2]
[372489616,1752661862966,-1678.67,0.00022191,2]
[372489617,1752661862975,-2804.76,0.00022191,2]
[372489618,1752661862984,-880.95,0.00022191,2]
[372489619,1752661862994,-460.0,0.00022191,2]
[372489620,1752661863003,-460.0,0.00022191,2]
[372489621,1752661863012,-482.07672015,0.00022191,2]
[372489622,1752661863021,-460.0,0.00022191,2]
[372489623,1752661863032,-547.27,0.00022191,2]
[372489624,1752661863041,-460.0,0.00022191,2]
[372489625,1752661863050,-460.0,0.00022191,2]
[372489626,1752661863060,-460.0,0.00022191,2]
[372489627,1752661863070,-1611.13,0.00022191,2]
[372489628,1752661863080,-460.0,0.00022191,2]
[372489629,1752661863091,-538.41,0.00022191,2]
[372489630,1752661863101,-3033.39,0.00022191,2]
[372489631,1752661863110,-1379.03,0.00022191,2]
[372489632,1752661863120,-151.0,0.00022191,7]
[372489633,1752661863131,-531.64,0.00022191,2]
[372489634,1752661863141,-2255.61,0.00022191,2]
[372489635,1752661863152,-509.9646554,0.00022191,2]
[372489636,1752661863162,-460.0,0.00022191,2]
[372489637,1752661863172,-669.07,0.00022191,2]
[372489638,1752661863182,-460.0,0.00022191,2]
[372489639,1752661863191,-654.85,0.00022191,2]
[372489640,1752661863201,-460.0,0.00022191,2]
[372489641,1752661863210,-161.0,0.00022192,7]
[372489642,1752661863219,-2351.0,0.00022224,2]
[372489643,1752661863229,-587.0,0.00022225,2]
[372489644,1752661863239,-587.0,0.00022225,2]
[372489645,1752661863249,-343.96916885,0.00022241,2]
[372489646,1752661863259,-1037.66765001,0.00022383,7]
[372489647,1752661863269,-151.0,0.000224,5]
[372489648,1752661863279,-1462.0,0.00022442,2]
[372489649,1752661863289,-460.0,0.00022465,2]
[372489650,1752661863299,-460.0,0.00022465,2]
[372489651,1752661863309,-460.0,0.00022465,2]
[372489652,1752661863318,-460.0,0.00022465,2]
[372489653,1752661863328,-460.0,0.00022465,2]
[372489654,1752661863338,-460.0,0.00022465,2]
[372489655,1752661863348,-468.7,0.00022465,2]
[372489656,1752661863358,-577.88,0.00022465,2]
[372489657,1752661863367,-460.0,0.00022465,2]
[372489658,1752661863377,-458.72280647,0.00022465,2]
[372489659,1752661863387,-886.16,0.00022465,2]
[372489660,1752661863396,-460.0,0.00022465,2]
[372489661,1752661863405,-566.1,0.00022465,2]
[372489662,1752661863415,-460.0,0.00022465,2]
[372489663,1752661863425,-460.0,0.00022465,2]
[372489664,1752661863435,-460.0,0.00022465,2]
[372489665,1752661863445,-460.0,0.00022465,2]
[372489666,1752661863455,-371.1018765,0.00022465,2]
[372489667,1752661863464,-460.0,0.00022465,2]
[372489668,1752661863474,-876.74,0.00022465,2]